bitfinex-derivatives/quotes_ETHF0:USTF0_20250927
["timestamp","ask_amount","ask_price","bid_price","bid_amount"]
[1758968360164,0.5551,3993.4,3993.3,4.55917]
[1758968360366,0.88001933,3993.4,3993.3,1.12477]
[1758968372674,1.33048933,3993.4,3993.3,1.12477]
[1758968380468,1.3286509,3993.4,3993.3,1.12477]
[1758968382475,1.85749238,3993.4,3993.3,1.12477]
[1758968392479,1.85749238,3993.4,3993.3,0.4641]
[1758968393392,1.85749238,3993.4,3993.3,0.91458]
[1758968394287,1.85749238,3993.4,3993.3,0.252]
[1758968394587,1.76141148,3993.4,3993.3,0.4648]
[1758968395084,1.85764153,3993.4,3993.3,0.4648]
[1758968395488,1.85764153,3993.4,3993.3,0.91528]
[1758968395785,1.85764153,3993.4,3993.3,1.14198]
[1758968395985,1.76141148,3993.4,3993.3,1.14198]
[1758968398189,1.76141148,3993.4,3993.3,0.6915]
[1758968399287,1.85763849,3993.4,3993.3,1.14198]
[1758968399786,1.85763849,3993.4,3993.3,0.6915]
[1758968401986,1.85763849,3993.4,3993.3,0.252]
[1758968403686,1.23738,3993.3,3993.2,1.1996]
[1758968403883,1.86244849,3993.3,3993.2,0.9516]
[1758968404188,1.86244849,3993.3,3993.2,0.252]
[1758968404586,1.86244849,3993.3,3993.2,0.15244624]
[1758968404782,1.2374,3993.1,3993.0,0.2003]
[1758968405089,1.23745,3992.7,3992.6,0.00249556]
[1758968405385,3.00365992,3992.7,3992.6,0.25449556]
[1758968406389,2.47481844,3992.7,3992.6,0.25449556]
[1758968406891,2.47481844,3992.7,3992.6,0.70505556]
[1758968407791,2.47481844,3992.7,3992.6,0.25449556]
[1758968408495,2.47481844,3992.7,3992.6,0.00249556]
[1758968408692,2.47481844,3992.7,3992.6,0.25449556]
[1758968413996,0.88312701,3992.7,3992.6,0.70505556]
[1758968414186,0.127,3993.0,3992.9,0.45052]
[1758968414385,0.3334,3993.0,3992.9,1.35922]
[1758968414691,3.88450364,3993.5,3993.4,1.10717]
[1758968414891,3.9805106,3993.5,3993.4,1.35917]
[1758968415091,0.67670364,3993.5,3993.4,1.35917]
[1758968415794,3.7668,3994.0,3993.9,0.88221]
[1758968416094,0.4274,3994.4,3994.3,1.19146]
[1758968416290,0.4274,3994.4,3994.3,1.44346]
[1758968416896,0.43054681,3994.4,3994.3,1.44346]
[1758968417097,0.43054681,3994.4,3994.3,0.9931]
[1758968417891,0.76414681,3994.4,3994.3,0.9931]
[1758968423996,1.20109,3994.1,3994.0,0.025]
[1758968424192,0.4323,3993.8,3993.7,0.87183]
[1758968424499,1.67284143,3993.8,3993.7,1.46393]
[1758968425900,1.89184143,3993.8,3993.7,1.46393]
[1758968428406,2.34226143,3993.8,3993.7,1.0135]
[1758968428704,2.34226143,3993.8,3993.7,1.46393]
[1758968429905,2.34226143,3993.8,3993.7,1.0135]
[1758968430603,2.34226143,3993.8,3993.7,1.46393]
[1758968431300,2.34226143,3993.8,3993.7,0.70243]
[1758968431705,2.34226143,3993.8,3993.7,1.24943]
[1758968432003,2.34226143,3993.8,3993.7,1.46393]
[1758968433594,0.66373,3993.7,3993.6,0.45044]
[1758968433794,0.66373,3993.7,3993.2,3.86518]
[1758968433795,0.88278,3993.3,3993.2,3.86518]
[1758968433994,1.20118,3993.3,3993.2,4.67178]
[1758968434998,0.7507,3993.3,3993.2,4.67178]
[1758968435196,0.3184,3993.3,3993.2,4.67178]
[1758968435596,0.5317,3993.3,3993.2,1.46398]
[1758968435806,0.98216,3993.5,3993.4,0.87187]
[1758968436014,0.98216,3993.5,3993.4,1.21197]
[1758968437108,1.20116,3993.5,3993.4,1.21197]
[1758968439602,1.20116,3993.5,3993.4,1.46397]
[1758968441209,1.33686,3993.5,3993.4,1.46397]
[1758968441808,1.33686,3993.5,3993.4,1.21197]
[1758968442009,1.33686,3993.5,3993.4,1.46397]
[1758968444212,1.20116,3993.5,3993.4,1.46397]
[1758968444614,1.20116,3993.5,3993.4,1.0135]
[1758968445208,1.33686,3993.5,3993.4,1.46397]
[1758968447529,1.33686,3993.5,3993.4,1.0135]
[1758968447925,0.66378,3993.3,3993.2,0.99748]
[1758968448126,1.20118,3993.3,3993.2,1.24948]
[1758968450234,1.20118,3993.3,3993.2,0.799]
[1758968451036,1.20118,3993.3,3993.2,1.24949]
[1758968453339,1.20118,3993.3,3993.2,0.99749]
[1758968453634,1.20118,3993.3,3993.2,1.24949]
[1758968454339,1.20118,3993.3,3993.2,1.46399]
[1758968456237,1.29117341,3993.3,3993.2,1.46399]
[1758968460041,1.20118,3993.3,3993.2,1.46399]
[1758968460243,1.29118935,3993.3,3993.2,1.46399]
[1758968462649,1.31601,3993.0,3992.9,0.45051]
[1758968462950,1.18132,3992.9,3992.8,0.45052]
[1758968463249,1.18135,3992.7,3992.6,0.54809556]
[1758968463452,2.69350433,3992.7,3992.6,0.54809556]
[1758968463648,2.69350433,3992.7,3992.6,0.21509556]
[1758968463949,1.18138,3992.4,3992.3,2.40789]
[1758968464148,1.18138,3992.4,3992.3,2.65989]
[1758968464643,1.18138,3992.4,3992.3,1.46979]
[1758968464852,1.18138,3992.4,3992.3,0.76931538]
[1758968465149,2.60349546,3992.4,3992.3,0.79971538]
[1758968465551,2.60349546,3992.4,3992.3,0.00211538]
[1758968465847,2.60349546,3992.4,3992.3,0.25411538]
[1758968468246,0.45061,3992.1,3992.0,0.1029]
[1758968468443,0.78136,3992.6,3992.5,0.2274]
[1758968468657,1.08019369,3992.6,3992.5,1.0406]
[1758968468851,1.30359369,3992.6,3992.5,1.0406]
[1758968469243,1.8305031,3992.6,3992.5,0.48132411]
[1758968469744,1.8305031,3992.6,3992.5,0.81892411]
[1758968469947,0.85303369,3992.6,3992.5,1.04252411]
[1758968470151,1.30359369,3992.6,3992.5,1.17812411]
[1758968470346,1.30359369,3992.6,3992.5,0.81892411]
[1758968473049,0.85303369,3992.6,3992.5,1.04252411]
[1758968473252,0.08983369,3992.6,3992.5,1.62869411]
[1758968473451,3.5386,3993.1,3992.9,0.45052]
[1758968473649,3.5386,3993.1,3993.0,1.62671]
[1758968473650,3.4168,3993.1,3993.0,1.62671]
[1758968473845,3.2078,3993.1,3993.0,1.62671]
[1758968474045,3.2078,3993.5,3993.4,1.23907]
[1758968474250,3.65826,3993.5,3993.4,1.49107]
[1758968474452,4.19806,3993.5,3993.4,1.49107]
[1758968474844,0.45043,3993.7,3993.5,0.45044]
[1758968475052,0.209,3993.9,3993.8,1.23902]
[1758968475252,0.209,3993.9,3993.8,1.49102]
[1758968475756,0.5398,3993.9,3993.8,1.0406]
[1758968479462,0.99021,3993.9,3993.8,1.49102]
[1758968479667,0.99021,3993.9,3993.8,1.0406]
[1758968479856,0.5398,3993.9,3993.8,1.0406]
[1758968480659,0.99021,3993.9,3993.8,1.0406]
[1758968481058,0.5398,3993.9,3993.8,1.0406]
[1758968481956,0.5398,3993.9,3993.8,1.49102]
[1758968483650,0.309,3994.3,3994.2,0.45038]
[1758968483855,0.97496,3994.3,3994.2,1.45918]
[1758968484058,1.19506,3994.3,3994.2,1.45918]
[1758968484261,1.19506,3994.3,3994.2,1.0088]
[1758968487359,0.00314681,3994.4,3994.2,1.0088]
[1758968487665,0.00314681,3994.4,3994.3,1.20716]
[1758968488252,0.00314681,3994.4,3994.3,6.20716]
[1758968496671,0.00314681,3994.4,3994.3,7.34743236]
[1758968497366,0.00314681,3994.4,3994.3,9.34648267]
[1758968499575,0.00314681,3994.4,3994.3,4.34648267]
[1758968501477,0.00314681,3994.4,3994.3,2.34743236]
[1758968502378,0.00314681,3994.4,3994.3,4.31225784]
[1758968507477,0.74784681,3994.4,3994.3,1.20716]
[1758968507678,0.45038,3994.2,3994.1,0.2405]
[1758968507875,2.33535236,3994.2,3994.1,0.2405]
[1758968508077,2.33535236,3994.2,3994.1,0.4915]
[1758968508286,2.42691007,3994.2,3994.1,0.4512]
[1758968508577,2.33535236,3994.2,3994.1,0.4512]
[1758968508987,2.33535236,3994.2,3994.1,0.6757]
[1758968509277,2.33535236,3994.2,3994.1,0.9885]
[1758968510983,2.42692784,3994.2,3994.1,0.4512]
[1758968512787,0.45039,3994.1,3994.0,0.025]
[1758968512982,1.2803778,3994.1,3994.0,0.276]
[1758968513478,6.2803778,3994.1,3994.0,0.251]
[1758968518088,1.3215,3994.0,3993.9,0.0654]
[1758968518288,0.86557,3993.4,3993.3,3.4144]
[1758968518489,1.18877,3993.4,3993.3,3.6654]
[1758968518686,1.18877,3993.4,3993.3,4.43758]
[1758968520988,1.18877,3993.4,3993.3,4.65628]
[1758968521784,0.5323,3993.7,3993.6,0.87574]
[1758968521989,3.87039681,3994.4,3994.3,0.747]
[1758968522191,3.96203276,3994.4,3994.3,0.999]
[1758968522392,4.16803276,3994.4,3994.3,0.999]
[1758968522592,4.49123276,3994.4,3994.3,0.999]
[1758968522789,4.49123276,3994.4,3994.3,0.7924]
[1758968523093,0.7383,3993.9,3993.8,0.4253]
[1758968523393,0.7383,3993.9,3993.8,0.6773]
[1758968523594,1.18871,3993.9,3993.8,0.999]
[1758968523789,1.18871,3993.9,3993.8,1.44942]
[1758968527097,0.7383,3993.9,3993.8,1.44942]
[1758968527286,0.5323,3993.9,3993.8,1.44942]
[1758968527595,0.7383,3993.9,3993.8,1.44942]
[1758968527798,1.18871,3993.9,3993.8,1.44942]
[1758968529185,2.32898236,3993.9,3993.8,0.2066]
[1758968529390,1.19193,3993.7,3993.6,0.66733]
[1758968529591,1.19193,3993.7,3993.6,1.44353]
[1758968530492,0.7415,3993.7,3993.6,1.44353]
[1758968530695,1.66867236,3993.9,3993.8,1.19152]
[1758968530998,0.5284,3993.9,3993.8,1.19152]
[1758968531184,0.7415,3993.9,3993.8,1.19152]
[1758968531391,1.19191,3993.9,3993.8,1.19152]
[1758968531584,1.19191,3993.9,3993.8,0.7411]
[1758968531789,2.33218236,3993.9,3993.8,0.7411]
[1758968531991,1.19192,3993.8,3993.7,0.45043]
[1758968532495,1.19192,3993.8,3993.7,1.23543]
[1758968534406,1.28366231,3993.8,3993.7,0.4689]
[1758968534599,0.7415,3993.4,3993.3,4.19128]
[1758968534797,0.7415,3993.4,3993.3,4.65138]
[1758968538105,1.19197,3993.4,3993.3,1.44358]
[1758968541298,0.7415,3993.4,3993.3,1.44358]
[1758968541499,0.5284,3993.6,3993.5,1.31934]
[1758968541700,1.07065153,3993.6,3993.5,1.31934]
[1758968541900,1.28375153,3993.6,3993.5,1.19154]
[1758968545809,0.83331153,3993.6,3993.5,1.19154]
[1758968546905,0.09181153,3993.6,3993.5,1.32694]
[1758968547113,0.42071153,3993.6,3993.5,1.32694]
[1758968547409,0.3289,3994.0,3993.9,1.23441]
[1758968547606,1.16971793,3994.0,3993.9,1.48641]
[1758968547913,1.82601793,3994.0,3993.9,1.48641]
[1758968548104,3.09129029,3994.0,3993.9,0.98641]
[1758968548309,3.09129029,3994.0,3993.9,0.70241]
[1758968551915,2.64089029,3994.0,3993.9,0.70241]
[1758968552115,3.09129029,3994.0,3993.9,0.92501]
[1758968555516,3.09129029,3994.0,3993.3,0.45048]
[1758968555517,0.757,3993.4,3993.3,0.45048]
[1758968555815,1.82608793,3993.4,3993.3,0.70248]
[1758968560006,1.82608793,3993.4,3993.3,0.252]
[1758968560211,0.4281,3993.1,3993.0,0.45051]
[1758968560407,0.757,3993.1,3993.0,0.92511]
[1758968560816,1.2075,3993.1,3993.0,0.92511]
[1758968561215,0.757,3992.6,3992.5,0.67509411]
[1758968561521,0.757,3992.6,3992.5,0.92709411]
[1758968561818,1.20756,3992.6,3992.5,0.92709411]
[1758968564721,0.757,3992.6,3992.5,0.92709411]
[1758968565023,0.757,3992.6,3992.5,1.14849411]
[1758968565224,0.3289,3992.6,3992.5,1.14849411]
[1758968565432,0.5511,3992.6,3992.5,1.28769411]
[1758968565630,0.3289,3992.6,3992.5,1.28769411]
[1758968566134,1.00166,3992.6,3992.5,1.28769411]
[1758968566341,1.00166,3992.6,3992.5,1.14849411]
[1758968568142,1.20756,3992.6,3992.5,0.69792411]
[1758968568340,1.20756,3992.6,3992.5,1.14849411]
[1758968570538,1.20756,3992.6,3992.5,0.00192411]
[1758968570736,1.20756,3992.6,3992.5,0.25392411]
[1758968573136,1.20756,3992.6,3992.5,0.47652411]
[1758968574334,1.20756,3992.6,3992.5,0.25392411]
[1758968585251,1.29932665,3992.6,3992.5,0.25392411]
[1758968590247,1.29939897,3992.6,3992.5,0.25392411]
[1758968591148,1.29939897,3992.6,3992.5,0.70449411]
[1758968594746,0.84883897,3992.6,3992.5,0.91839411]
[1758968595055,0.84883897,3992.6,3992.5,1.14079411]
[1758968595352,1.29939897,3992.6,3992.5,1.14079411]
[1758968595543,1.29939897,3992.6,3992.5,0.70449411]
[1758968598054,1.82659205,3992.6,3992.5,0.70449411]
[1758968601648,1.82670135,3992.6,3992.5,0.70449411]
[1758968607455,1.37614135,3992.6,3992.5,0.92589411]
[1758968607956,1.82670135,3992.6,3992.5,0.92589411]
[1758968609058,1.82670135,3992.6,3992.5,0.70449411]
[1758968609660,1.82670135,3992.6,3992.5,0.45249411]
[1758968609956,1.82670135,3992.6,3992.5,0.70449411]
[1758968610653,1.82670135,3992.6,3992.5,0.25392411]
[1758968611161,1.82670135,3992.6,3992.5,0.70449411]
[1758968619359,1.82668769,3992.6,3992.5,0.70449411]
[1758968621569,1.82668769,3992.6,3992.5,0.92589411]
[1758968623464,1.82668769,3992.6,3992.5,0.70449411]
[1758968628071,1.82668828,3992.6,3992.5,0.70449411]
[1758968633874,1.2994952,3992.6,3992.5,0.70449411]
[1758968634169,1.82700445,3992.6,3992.5,0.70449411]
[1758968634568,1.82700445,3992.6,3992.5,0.92689411]
[1758968635070,1.82700445,3992.6,3992.5,0.70449411]
[1758968636674,1.82726118,3992.6,3992.5,0.70449411]
[1758968640576,1.73506925,3992.6,3992.5,0.70449411]
[1758968640871,1.82726422,3992.6,3992.5,0.70449411]
[1758968642368,1.82726422,3992.6,3992.5,0.25392411]
[1758968642570,1.18721,3992.1,3992.0,0.45062]
[1758968642773,1.80704228,3992.1,3992.0,0.252]
[1758968643475,1.27940497,3992.1,3992.0,0.252]
[1758968643661,1.27940497,3992.1,3992.0,0.70447214]
[1758968644061,1.27940497,3992.1,3992.0,0.25385214]
[1758968644375,1.27940497,3992.1,3992.0,0.70447214]
[1758968644567,1.27940497,3992.1,3992.0,0.45247214]
[1758968644761,0.82879497,3992.1,3992.0,0.70447214]
[1758968645372,1.27940497,3992.1,3992.0,0.70447214]
[1758968646266,0.316,3991.9,3991.8,0.252]
[1758968646466,0.62329497,3991.9,3991.8,1.14744]
[1758968646666,0.1244,3991.5,3991.4,0.45069]
[1758968646872,0.6555,3991.5,3991.4,2.28912155]
[1758968647375,0.65773301,3991.5,3991.4,2.43098897]
[1758968648674,0.65773301,3991.5,3991.4,2.29198897]
[1758968651174,1.32531301,3991.5,3991.4,2.03998897]
[1758968651380,0.87463301,3991.5,3991.4,1.15035742]
[1758968652377,1.32531301,3991.5,3991.4,1.15035742]
[1758968652676,1.32531301,3991.5,3991.4,0.70555742]
[1758968652872,0.87463301,3991.5,3991.4,0.70555742]
[1758968653078,0.87463301,3991.5,3991.4,0.91905742]
[1758968654582,0.87463301,3991.5,3991.4,1.14055742]
[1758968654781,0.87463301,3991.5,3991.4,1.27995742]
[1758968654983,0.65773301,3991.5,3991.4,1.27995742]
[1758968655373,0.44263301,3991.5,3991.4,1.27995742]
[1758968656576,0.66733301,3991.5,3991.4,1.27995742]
[1758968660271,0.66733301,3991.5,3991.4,1.14055742]
[1758968661172,0.31823301,3991.5,3991.4,2.42158897]
[1758968661372,0.00223301,3991.5,3991.4,2.42158897]
[1758968662385,0.34453301,3991.5,3991.4,2.42158897]
[1758968663673,0.00223301,3991.5,3991.4,2.42158897]
[1758968663877,0.31643301,3991.5,3991.4,2.42158897]
[1758968664789,0.00223301,3991.5,3991.4,2.42158897]
[1758968665979,0.31643301,3991.5,3991.4,2.42158897]
[1758968666782,0.44983301,3991.5,3991.4,2.42158897]
[1758968667082,2.02106456,3991.5,3991.4,0.70555742]
[1758968669276,2.47174456,3991.5,3991.4,0.70555742]
[1758968669778,2.47174456,3991.5,3991.4,0.25486742]
[1758968670180,2.56506536,3991.5,3991.4,0.25486742]
[1758968670385,2.56506536,3991.5,3991.4,0.00286742]
[1758968670678,2.56506536,3991.5,3991.4,0.25486742]
[1758968672174,2.56506536,3991.5,3991.4,0.00286742]
[1758968672371,1.01374,3991.0,3990.9,0.45075]
[1758968672572,1.32794,3991.0,3990.9,0.70275]
[1758968673482,0.8772,3991.0,3990.9,0.92572111]
[1758968673879,1.32794,3991.0,3990.9,0.92572111]
[1758968674084,1.32794,3991.0,3990.9,0.67372111]
[1758968674384,1.32794,3991.0,3990.9,0.92572111]
[1758968675585,1.42129376,3991.0,3990.9,0.92572111]
[1758968677884,1.42129376,3991.0,3990.9,1.14232111]
[1758968678384,1.32794,3991.0,3990.9,1.14232111]
[1758968678580,1.32794,3991.0,3990.9,0.70492111]
[1758968678982,1.32794,3991.0,3990.9,0.92572111]
[1758968679581,1.32794,3991.0,3990.9,1.14232111]
[1758968684293,1.32794,3991.0,3990.9,1.28172111]
[1758968684294,0.4476,3991.0,3990.9,1.28172111]
[1758968684487,1.33012301,3991.5,3991.4,0.4374]
[1758968684687,1.423366,3991.5,3991.4,1.14009]
[1758968684889,1.423366,3991.5,3991.4,0.6894]
[1758968685087,0.972676,3991.5,3991.4,0.92349]
[1758968685287,1.423356,3991.5,3991.4,0.92349]
[1758968685696,1.423356,3991.5,3991.4,0.252]
[1758968694301,1.95368175,3991.5,3991.4,0.252]
[1758968699603,1.95392182,3991.5,3991.4,0.252]
[1758968703508,1.50324182,3991.5,3991.4,1.13769]
[1758968703713,0.44983301,3991.5,3991.4,2.70089829]
[1758968704013,0.31643301,3991.5,3991.4,2.70089829]
[1758968705409,0.66953301,3991.5,3991.4,2.70089829]
[1758968709519,0.66953301,3991.5,3991.4,1.13769]
[1758968709717,0.88983301,3991.5,3991.4,0.92609]
[1758968710512,1.34051301,3991.5,3991.4,0.92609]
[1758968711018,0.88983301,3991.5,3991.4,0.92609]
[1758968711916,3.5399,3992.5,3992.4,0.2205]
[1758968712115,0.3321,3992.5,3992.4,0.9602]
[1758968712321,1.09636585,3992.5,3992.4,0.4725]
[1758968712524,1.09636585,3992.5,3992.4,0.92308]
[1758968712525,0.64579585,3992.5,3992.4,0.92308]
[1758968712719,1.09636585,3992.5,3992.4,0.92308]
[1758968712912,1.00297,3992.5,3992.4,0.92308]
[1758968713113,0.55519312,3992.5,3992.4,0.92308]
[1758968713522,0.55519312,3992.5,3992.4,1.14018]
[1758968714127,0.87339312,3992.5,3992.4,1.14018]
[1758968715225,1.32396312,3992.5,3992.4,0.92308]
[1758968715914,1.32396312,3992.5,3992.4,0.70258]
[1758968717323,1.32396312,3992.5,3992.4,0.92308]
[1758968718525,0.87339312,3992.5,3992.4,0.92308]
[1758968719822,0.87339312,3992.5,3992.2,0.025]
[1758968720026,1.19679,3992.3,3992.2,0.025]
[1758968720321,0.2077,3991.8,3991.7,3.65845]
[1758968720513,1.19685,3991.8,3991.7,3.90945]
[1758968720715,1.19685,3991.8,3991.7,3.2078]
[1758968720921,6.19685,3991.8,3991.7,3.2078]
[1758968721120,6.19685,3991.8,3991.7,3.4588]
[1758968721625,0.8787,3991.3,3991.2,3.65851]
[1758968721823,1.1969,3991.3,3991.2,3.90951]
[1758968724331,0.7462,3991.3,3991.2,4.13001]
[1758968724526,0.3182,3991.3,3991.2,4.62691]
[1758968725125,0.5269,3991.3,3991.2,4.62691]
[1758968725430,1.1918,3991.3,3991.2,4.35571]
[1758968727132,0.7411,3991.3,3991.2,4.35571]
[1758968727334,0.7411,3991.3,3991.2,4.62691]
[1758968727835,0.7411,3991.3,3991.2,4.37591]
[1758968728132,1.1918,3991.3,3991.2,4.35671]
[1758968728937,0.7411,3991.3,3991.2,4.35671]
[1758968729336,0.7411,3991.3,3991.2,4.62791]
[1758968731730,0.7411,3991.3,3991.2,4.10471]
[1758968731931,2.61540829,3991.3,3991.2,3.2078]
[1758968732141,2.61540829,3991.3,3991.2,3.4598]
[1758968734636,7.61540829,3991.3,3991.2,3.2078]
[1758968734837,1.30954,3991.0,3990.9,0.00217111]
[1758968735138,0.7354,3990.6,3990.5,0.45079]
[1758968735340,0.7354,3990.6,3990.5,0.70279]
[1758968736041,0.7354,3990.6,3990.5,0.25504528]
[1758968736334,2.60978829,3990.6,3990.5,0.25504528]
[1758968736934,2.60978829,3990.6,3990.5,0.00304528]
[1758968737136,2.70282063,3990.6,3990.5,0.25504528]
[1758968737330,2.60978829,3990.6,3990.5,0.25504528]
[1758968738838,2.60978829,3990.6,3990.5,0.00304528]
[1758968739047,2.60978829,3990.6,3990.5,0.25504528]
[1758968740744,1.18618,3990.6,3990.5,0.25504528]
[1758968742645,2.32907496,3990.6,3990.5,0.25504528]
[1758968743144,1.87829496,3990.6,3990.5,0.70583528]
[1758968743343,0.7354,3990.6,3990.5,1.42173528]
[1758968744034,1.18618,3990.6,3990.5,1.15053528]
[1758968744243,0.7354,3990.6,3990.5,1.15053528]
[1758968744444,0.7354,3990.6,3990.5,1.42173528]
[1758968745142,1.18618,3990.6,3990.5,1.15053528]
[1758968745341,0.3125,3990.6,3990.5,1.42173528]
[1758968745846,0.5212,3990.6,3990.5,1.42173528]
[1758968748048,0.97198,3990.6,3990.5,1.42173528]
[1758968750947,1.18618,3990.6,3990.5,1.42173528]
[1758968751143,1.18618,3990.6,3990.5,0.69974528]
[1758968752153,1.18618,3990.6,3990.5,1.15053528]
[1758968754055,1.18618,3990.6,3990.5,0.25504528]
[1758968754357,0.95128301,3990.6,3990.5,0.25504528]
[1758968754756,0.95128301,3990.6,3990.5,0.46844528]
[1758968758359,1.04446502,3990.6,3990.5,0.46844528]
[1758968760757,1.04446502,3990.6,3990.5,0.00304528]
[1758968761054,1.04446502,3990.6,3990.5,0.25504528]
[1758968761256,1.57993761,3990.6,3990.5,0.25504528]
[1758968761755,1.57993761,3990.6,3990.5,0.46844528]
[1758968763562,1.58012695,3990.6,3990.5,0.46844528]
[1758968764061,1.12934695,3990.6,3990.5,1.47563528]
[1758968764266,0.68025011,3990.6,3990.5,1.60683528]
[1758968764464,1.13103011,3990.6,3990.5,1.60683528]
[1758968765261,0.68025011,3990.6,3990.5,1.60683528]
[1758968765459,0.68033187,3990.6,3990.5,1.60683528]
[1758968765759,1.13111187,3990.6,3990.5,1.60683528]
[1758968766257,1.44381187,3990.6,3990.5,1.60683528]
[1758968766446,0.6289257,3990.6,3990.5,2.74973024]
[1758968766646,0.09345311,3990.6,3990.5,2.74973024]
[1758968767953,0.54423311,3990.6,3990.5,2.74973024]
[1758968769258,0.09345311,3990.6,3990.5,2.74973024]
[1758968769746,0.54423311,3990.6,3990.5,2.74973024]
[1758968769949,0.54423311,3990.6,3990.5,1.60683528]
[1758968770956,0.09345311,3990.6,3990.5,1.60683528]
[1758968773052,0.09345311,3990.6,3990.5,2.74973024]
[1758968773248,0.09345311,3990.6,3990.5,5.95753024]
[1758968773559,0.2245,3991.1,3991.0,1.33583]
[1758968773760,0.2245,3991.1,3991.0,1.58783]
[1758968773761,0.76092765,3991.1,3991.0,1.58783]
[1758968774059,1.21165765,3991.1,3991.0,1.58783]
[1758968774659,0.98715765,3991.1,3991.0,1.58783]
[1758968775053,1.21165765,3991.1,3991.0,1.58783]
[1758968775260,1.54725765,3991.1,3991.0,1.58783]
[1758968777258,1.54725765,3991.1,3991.0,1.58784]
[1758968777462,1.76555765,3991.1,3991.0,0.252]
[1758968777659,1.76555765,3991.1,3990.5,3.34204528]
[1758968777660,0.3356,3990.7,3990.5,3.98382528]
[1758968777857,1.22917,3990.7,3990.6,1.02498]
[1758968778053,1.22917,3990.7,3990.6,1.25238]
[1758968779062,1.22917,3990.7,3990.6,0.8016]
[1758968785366,1.31853017,3990.7,3990.6,0.8016]
[1758968785567,1.85174613,3990.7,3990.6,0.8016]
[1758968788967,1.22878,3990.6,3990.5,3.21084528]
[1758968789161,1.85153583,3990.6,3990.5,3.46284528]
[1758968789371,1.85153583,3990.6,3990.5,3.80324528]
[1758968789567,1.85153583,3990.6,3990.5,4.01474528]
[1758968790959,1.85153583,3990.6,3990.5,4.68393528]
[1758968791164,0.97854017,3990.6,3990.5,4.81763528]
[1758968791363,0.54014017,3990.6,3990.5,4.81763528]
[1758968792271,0.54014017,3990.6,3990.5,4.56563528]
[1758968792469,0.76244017,3990.6,3990.5,4.81763528]
[1758968792670,1.10204017,3990.6,3990.5,4.81763528]
[1758968793870,1.10204017,3990.6,3990.5,4.56563528]
[1758968794074,1.10204017,3990.6,3990.5,4.81763528]
[1758968795368,1.63568595,3990.6,3990.5,4.81763528]
[1758968796974,0.54014017,3990.6,3990.5,4.81763528]
[1758968805070,0.08936017,3990.6,3990.5,4.81763528]
[1758968805267,0.62322151,3990.6,3990.5,4.81763528]
[1758968807875,3.2078,3991.4,3991.3,0.7703]
[1758968808170,3.2078,3991.4,3991.3,1.473]
[1758968808171,3.83125176,3991.4,3991.3,1.473]
[1758968808369,0.62345176,3991.4,3991.3,7.89698333]
[1758968808575,3.2078,3991.8,3991.7,1.22096]
[1758968808769,3.83082802,3991.8,3991.7,1.47296]
[1758968809274,3.29723147,3991.8,3991.7,1.47296]
[1758968809478,0.08943147,3991.8,3991.7,1.47296]
[1758968809669,3.99799,3992.3,3992.2,1.2209]
[1758968809871,4.62048988,3992.3,3992.2,1.4729]
[1758968810070,4.84278988,3992.3,3992.2,1.4729]
[1758968810271,4.50318988,3992.3,3992.2,1.4729]
[1758968810675,4.84278988,3992.3,3992.2,1.4729]
[1758968810877,4.84278988,3992.3,3992.2,1.0223]
[1758968811075,4.50318988,3992.3,3992.2,1.0223]
[1758968811470,1.63498988,3992.3,3992.2,1.0223]
[1758968812274,1.10185109,3992.3,3992.2,1.0223]
[1758968812486,1.10220084,3992.3,3992.2,1.0223]
[1758968813177,1.31830084,3992.3,3992.2,1.0223]
[1758968816384,1.22859,3992.3,3992.2,1.0223]
[1758968823787,0.67289,3992.3,3992.2,1.0223]
[1758968825493,0.99439,3992.3,3992.2,1.0223]
[1758968825692,1.21429,3992.3,3992.2,1.0223]
[1758968833300,1.2165,3992.2,3992.1,0.2003]
[1758968833494,1.2165,3992.2,3992.1,0.4513]
[1758968833495,1.30616516,3992.2,3992.1,0.4513]
[1758968833693,1.30616516,3992.2,3992.1,0.251]
[1758968834198,1.2165,3992.2,3992.1,1.0045]
[1758968834402,0.4506,3992.2,3992.1,1.0045]
[1758968835500,1.30626863,3992.2,3992.1,1.0045]
[1758968836201,1.83956423,3992.2,3992.1,1.0045]
[1758968841503,1.83956423,3992.2,3992.1,0.251]
[1758968842010,1.83956423,3992.2,3992.1,0.784]
[1758968842404,1.7497956,3992.2,3992.1,0.784]
[1758968842609,1.84115064,3992.2,3992.1,0.784]
[1758968845197,3.26513397,3992.2,3992.1,0.251]
[1758968845404,0.88384,3991.9,3991.8,0.3255]
[1758968845601,1.81709131,3991.9,3991.8,0.5765]
[1758968849812,1.81709131,3991.9,3991.8,0.7909]
[1758968850409,1.36645131,3991.9,3991.8,1.45125]
[1758968850609,1.28939131,3991.9,3991.8,1.45125]
[1758968851214,1.59799131,3991.9,3991.8,1.45125]
[1758968851913,1.81709131,3991.9,3991.8,1.45125]
[1758968852304,1.81709131,3991.9,3991.8,1.0006]
[1758968852716,1.81709131,3991.9,3991.8,1.45125]
[1758968853919,1.81709131,3991.9,3991.8,1.0006]
[1758968854118,1.81708904,3991.9,3991.8,1.0006]
[1758968854615,1.81708904,3991.9,3991.8,0.4654]
[1758968854822,1.81708904,3991.9,3991.8,0.251]
[1758968855319,1.81708904,3991.9,3991.8,0.5765]
[1758968855818,1.81708904,3991.9,3991.8,1.24155]
[1758968859320,1.81708904,3991.9,3991.8,1.45125]
[1758968860918,1.81708904,3991.9,3991.8,1.0006]
[1758968861615,1.81708904,3991.9,3991.8,1.45125]
[1758968866819,1.7257356,3991.9,3991.8,1.45125]
[1758968867119,1.8299502,3991.9,3991.8,1.45125]
[1758968871223,1.82995434,3991.9,3991.8,1.45125]
[1758968879227,1.82995434,3991.9,3991.8,1.20025]
[1758968879433,1.82995434,3991.9,3991.8,1.45125]
[1758968880226,2.97188701,3991.9,3991.8,0.4654]
[1758968880433,2.97188701,3991.9,3991.8,0.251]
[1758968880825,0.3313,3991.6,3991.5,3.2078]
[1758968881025,1.22399,3991.4,3991.3,0.4507]
[1758968881225,0.87751874,3991.4,3991.3,1.0104]
[1758968881533,0.87751874,3991.4,3991.3,1.221]
[1758968882234,1.32820874,3991.4,3991.3,1.221]